fUSD/lending_fUSD_20260424
["ID","MTS","AMOUNT","RATE_DAILY","PERIOD"]
[421096044,1777033831851,-105.8157131,8.762e-05,2]
[421096045,1777033831863,-63.15879056,8.762e-05,2]
[421096046,1777033831873,-376.94273504,9.04e-05,2]
[421096047,1777033831885,-823.05726496,9.04e-05,2]
[421096048,1777033831894,-181.38901472,9.041e-05,2]
[421096049,1777033831918,-68.61098528,9.041e-05,2]
[421096050,1777033831928,-250.0,9.041e-05,2]
[421096051,1777033831938,-349.94711781,9.041e-05,2]
[421096052,1777033831947,-4735.89715988,9.041e-05,2]
[421096053,1777033831957,-568.24,9.402e-05,2]
[421096054,1777033831966,-638.3,9.404e-05,2]
[421096055,1777033831976,-184.62673638,9.409e-05,2]
[421096056,1777033831986,-150.0,9.409e-05,2]
[421096057,1777033831996,-187.29416377,9.409e-05,2]
[421096058,1777033832006,-500.0,9.409e-05,2]
[421096059,1777033832015,-500.0,9.409e-05,2]
[421096060,1777033832025,-500.0,9.409e-05,2]
[421096061,1777033832039,-500.0,9.409e-05,2]
[421096062,1777033832051,-537.88183946,9.409e-05,2]
[421096063,1777033832061,-150.0,9.409e-05,2]
[421096064,1777033832071,-150.0,9.409e-05,2]
[421096065,1777033832081,-150.0,9.409e-05,2]
[421096066,1777033832091,-210.68312372,9.409e-05,2]
[421096067,1777033832101,-296.80478849,9.419e-05,2]
[421096068,1777033832110,-150.0,9.419e-05,2]
[421096069,1777033832120,-150.0,9.419e-05,2]
[421096070,1777033832129,-150.00000001,9.419e-05,2]
[421096071,1777033832139,-150.0,9.419e-05,2]
[421096072,1777033832149,-150.0,9.419e-05,2]
[421096073,1777033832159,-150.0,9.419e-05,2]
[421096075,1777033832169,-150.0,9.419e-05,2]
[421096077,1777033832179,-151.0,9.427e-05,2]
[421096079,1777033832190,-151.0,9.43e-05,2]
[421096081,1777033832199,-150.0,9.524e-05,2]
[421096083,1777033832209,-500.0,9.563e-05,2]
[421096085,1777033832220,-500.0,9.563e-05,2]
[421096087,1777033832230,-500.75597371,9.563e-05,2]
[421096089,1777033832241,-162.24500663,9.565e-05,2]
[421096091,1777033832252,-160.0,9.565e-05,2]
[421096093,1777033832261,-500.0,9.567e-05,2]
[421096095,1777033832271,-500.0,9.567e-05,2]
[421096098,1777033832281,-304.87399146,9.567e-05,2]
[421096100,1777033832291,-501.09261039,9.567e-05,2]
[421096102,1777033832301,-59582.22047409,9.568e-05,2]
[421096104,1777033832314,-12933.41162547,9.568e-05,2]
[421096107,1777033832344,-8222.14082767,9.568e-05,2]
[421096108,1777033832364,-609.8984744,9.568e-05,2]
[421096109,1777033832376,-410.55372032,9.568e-05,2]
[421096130,1777033839201,-287.60256003,9.567e-05,2]
[421096133,1777033839220,-103.57407499,9.567e-05,2]
[421096191,1777033839812,-500.0,9.567e-05,2]
[421096197,1777033839857,-500.0,9.567e-05,2]
[421096201,1777033839889,-500.0,9.567e-05,2]
[421096203,1777033839905,-500.0,9.567e-05,2]
[421096205,1777033839915,-500.0,9.567e-05,2]
[421096207,1777033839925,-500.0,9.567e-05,2]
[421096209,1777033839935,-500.0,9.567e-05,2]
[421096211,1777033839945,-500.0,9.567e-05,2]
[421096213,1777033839956,-500.0,9.567e-05,2]
[421096215,1777033839966,-500.0,9.567e-05,2]
[421096217,1777033839976,-500.0,9.567e-05,2]
[421096219,1777033839986,-500.0,9.567e-05,2]
[421096221,1777033839996,-500.0,9.567e-05,2]
[421096225,1777033840006,-500.0,9.567e-05,2]
[421096227,1777033840016,-500.0,9.567e-05,2]
[421096229,1777033840027,-500.0,9.567e-05,2]
[421096231,1777033840038,-500.0,9.567e-05,2]
[421096233,1777033840049,-500.0,9.567e-05,2]
[421096236,1777033840058,-500.0,9.567e-05,2]
[421096239,1777033840068,-500.0,9.567e-05,2]
[421096242,1777033840077,-500.0,9.567e-05,2]
[421096245,1777033840086,-500.0,9.567e-05,2]
[421096247,1777033840096,-500.0,9.567e-05,2]
[421096249,1777033840106,-500.0,9.567e-05,2]
[421096251,1777033840116,-500.0,9.567e-05,2]
[421096254,1777033840125,-500.0,9.567e-05,2]
[421096257,1777033840134,-500.0,9.567e-05,2]
[421096260,1777033840144,-500.0,9.567e-05,2]
[421096262,1777033840155,-500.0,9.567e-05,2]
[421096264,1777033840165,-500.0,9.567e-05,2]
[421096266,1777033840174,-398.35150714,9.567e-05,2]
[421096268,1777033840184,-500.0,9.567e-05,2]
[421096270,1777033840194,-62380.26717834,9.568e-05,2]
[421096273,1777033840215,-39157.99999999,9.568e-05,2]
[421096275,1777033840230,-1153.341265,9.568e-05,2]
[421096278,1777033840250,-2272.41449338,9.568e-05,2]
[421096292,1777033840470,-580.80823926,9.568e-05,2]
[421096293,1777033840495,-509.65562623,9.568e-05,2]
[421096294,1777033840722,-28966.64413042,9.568e-05,2]
[421096295,1777033840735,-301.92197159,9.568e-05,2]
[421096296,1777033840779,-522.9232407,9.568e-05,2]
[421096299,1777033845937,-437.46744762,9.568e-05,2]
[421096304,1777033847455,-6652.6257094,9.568e-05,2]
[421096305,1777033847466,-37894.92581457,9.568e-05,2]
[421096307,1777033847896,-295.5419957,9.568e-05,2]
[421096308,1777033847954,-1733.59562206,9.568e-05,2]
[421096309,1777033847974,-9580.97694113,9.568e-05,2]
[421096310,1777033848008,-38501.91757,9.568e-05,2]
[421096313,1777034649615,612.47468992,0.00016291,120]
[421096318,1777035032051,-257.0,8.219e-05,2]
[421096319,1777035032060,-133.37271931,8.219e-05,2]
[421096320,1777035032074,-259.37939,8.219e-05,2]
[421096321,1777035032087,-807.24789069,8.219e-05,2]
[421096322,1777035032096,-300.0,8.219e-05,2]
[421096323,1777035032106,-280.0,8.219e-05,2]
[421096324,1777035032117,-500.0,8.22e-05,2]
[421096325,1777035032129,-580.81044846,8.22e-05,2]
[421096326,1777035032146,-1119.18955154,8.22e-05,2]
[421096327,1777035032158,-1600.0,8.22e-05,2]
[421096328,1777035032167,-150.0,8.877e-05,2]
[421096329,1777035032176,-150.0,8.877e-05,2]
[421096330,1777035032186,-150.0,8.966e-05,2]
[421096331,1777035032196,-150.0,9e-05,2]
[421096332,1777035032206,-1680.0,9.041e-05,2]
[421096333,1777035032216,-420.0,9.041e-05,2]
[421096334,1777035032228,-150.0,9.056e-05,2]
[421096335,1777035032238,-2844.4516,9.1e-05,2]
[421096336,1777035032249,-2500.0,9.1e-05,2]
[421096337,1777035032259,-150.0,9.146e-05,2]
[421096338,1777035032268,-500.0,9.199e-05,2]
[421096339,1777035032276,-150.0,9.199e-05,2]
[421096340,1777035032285,-500.0,9.199e-05,2]
[421096341,1777035032295,-29.29064629,9.199e-05,2]
[421096342,1777035032306,-335.31456548,9.199e-05,2]
[421096343,1777035032317,-135.39478823,9.199e-05,2]
[421096344,1777035032326,-416.79508235,9.199e-05,2]
[421096345,1777035032335,-224.77889358,9.199e-05,2]
[421096346,1777035032345,-500.0,9.199e-05,2]
[421096347,1777035032355,-22.06233131,9.199e-05,2]
[421096348,1777035032373,-477.93766869,9.199e-05,2]
[421096349,1777035032382,-500.0,9.199e-05,2]
[421096350,1777035032392,-300.0,9.199e-05,2]
[421096351,1777035032402,-500.0,9.199e-05,2]
[421096352,1777035032411,-500.0,9.199e-05,2]
[421096353,1777035032421,-500.0,9.199e-05,2]
[421096354,1777035032431,-500.0,9.199e-05,2]
[421096355,1777035032440,-500.0,9.199e-05,2]
[421096356,1777035032450,-500.0,9.199e-05,2]
[421096357,1777035032460,-500.0,9.199e-05,2]
[421096358,1777035032469,-500.0,9.199e-05,2]
[421096359,1777035032479,-500.0,9.199e-05,2]
[421096360,1777035032488,-500.0,9.199e-05,2]
[421096361,1777035032498,-500.0,9.199e-05,2]
[421096362,1777035032507,-433.06233131,9.199e-05,2]
[421096363,1777035032519,-66.93766869,9.199e-05,2]
[421096364,1777035032528,-500.0,9.199e-05,2]
[421096365,1777035032538,-500.0,9.199e-05,2]
[421096366,1777035032548,-500.0,9.199e-05,2]
[421096367,1777035032557,-500.0,9.199e-05,2]
[421096368,1777035032567,-500.0,9.199e-05,2]
[421096369,1777035032577,-500.0,9.199e-05,2]
[421096370,1777035032587,-500.0,9.199e-05,2]
[421096371,1777035032598,-500.0,9.199e-05,2]
[421096372,1777035032607,-371.06910454,9.199e-05,2]
[421096373,1777035032619,-128.93089546,9.199e-05,2]
[421096374,1777035032631,-500.0,9.199e-05,2]
[421096375,1777035032640,-500.0,9.199e-05,2]
[421096376,1777035032649,-101.28910454,9.199e-05,2]
[421096379,1777035032746,-398.71089546,9.199e-05,2]
[421096380,1777035032757,-279.83515072,9.199e-05,2]
[421096381,1777035032767,-500.0,9.199e-05,2]
[421096382,1777035032776,-500.0,9.199e-05,2]
[421096383,1777035032785,-500.0,9.199e-05,2]
[421096384,1777035032795,-500.0,9.199e-05,2]
[421096385,1777035032805,-500.0,9.199e-05,2]
[421096386,1777035032815,-500.0,9.199e-05,2]
[421096387,1777035032826,-500.0,9.199e-05,2]
[421096388,1777035032836,-250.0,9.199e-05,2]
[421096389,1777035032845,-3414.55395382,9.2e-05,2]
[421096390,1777035032856,-5488.02923765,9.2e-05,2]
[421096391,1777035032867,-5599.60610807,9.2e-05,2]
[421096392,1777035032878,-500.0,9.2e-05,2]
[421096396,1777035038234,-228.13,9.154e-05,2]
[421096397,1777035038244,-86.17268958,9.2e-05,2]
[421096398,1777035038288,-637.55172502,9.2e-05,2]
[421096399,1777035038344,-8539.3814926,9.2e-05,2]
[421096448,1777035040321,-996.93,9.2e-05,2]
[421096450,1777035040333,-300.72668511,9.2e-05,2]
[421096457,1777035040389,-943.78799,9.2e-05,2]
[421096460,1777035040408,-14295.21337095,9.2e-05,2]
[421096467,1777035040464,-461.38777926,9.2e-05,2]
[421096568,1777035047223,-500.0,9.199e-05,2]
[421096569,1777035047233,-57568.16836794,9.2e-05,2]
[421096570,1777035047243,-98428.83163231,9.2e-05,2]
[421096572,1777035047714,-2325.59999996,9.2e-05,2]
[421096577,1777035047991,-1035.08389315,9.2e-05,2]
[421096578,1777035048153,-273.74615893,9.2e-05,2]
[421096579,1777035048166,-8626.35649157,9.2e-05,2]
[421096580,1777035048334,-1052.82734669,9.2e-05,2]
[421096581,1777035048346,-92943.14801624,9.2e-05,2]
[421096582,1777035048359,-603.37735071,9.2e-05,2]
[421096583,1777035048371,-360.61437445,9.2e-05,2]
[421096584,1777035048385,-262.7710002,9.2e-05,2]
[421096585,1777035048408,-5164.7201628,9.2e-05,2]
[421096586,1777035048441,-899.5,9.2e-05,2]
[421096595,1777035127818,244.80090316,0.000165,120]
[421096601,1777035696601,-300.0,8.219e-05,2]
[421096602,1777035696624,-1200.0,8.219e-05,2]
[421096603,1777035696646,-300.0,8.219e-05,2]
[421096604,1777035696672,-300.0,8.219e-05,2]
[421096605,1777035696695,-257.0,8.219e-05,2]
[421096606,1777035696719,-280.0,8.219e-05,2]
[421096607,1777035696742,-500.0,8.22e-05,2]
[421096608,1777035696764,-1600.0,8.22e-05,2]
[421096609,1777035696787,-1400.0,8.22e-05,2]
[421096610,1777035696809,-2500.0,8.322e-05,2]
[421096611,1777035696832,-2500.0,8.322e-05,2]
[421096612,1777035696855,-2500.0,8.322e-05,2]
[421096613,1777035696877,-2500.0,8.322e-05,2]
[421096614,1777035696900,-151.0,8.574e-05,2]
[421096615,1777035696929,-1717.0,8.66e-05,2]
[421096633,1777035812232,100000.0,0.000165,120]
[421096658,1777036232461,-257.0,8.219e-05,2]
[421096659,1777036232470,-1200.0,8.219e-05,2]
[421096660,1777036232480,-300.0,8.219e-05,2]
[421096661,1777036232489,-280.0,8.219e-05,2]
[421096662,1777036232499,-210.63760254,8.22e-05,2]
[421096663,1777036232511,-289.36239746,8.22e-05,2]
[421096664,1777036232520,-1500.0,8.22e-05,2]
[421096665,1777036232529,-223.42114833,8.22e-05,2]
[421096666,1777036232540,-661.2272,8.22e-05,2]
[421096667,1777036232555,-415.35165167,8.22e-05,2]
[421096668,1777036232564,-2500.0,8.235e-05,2]
[421096669,1777036232573,-2500.0,8.235e-05,2]
[421096670,1777036232582,-2500.0,8.259e-05,2]
[421096671,1777036232592,-150.0,8.26e-05,2]
[421096672,1777036232601,-150.0,8.26e-05,2]
[421096673,1777036232610,-150.0,8.375e-05,2]
[421096674,1777036232619,-150.0,8.49e-05,2]
[421096675,1777036232628,-151.0,8.579e-05,2]
[421096676,1777036232961,-150.0,8.599e-05,2]
[421096677,1777036232987,-63620.68847788,8.6e-05,2]
[421096678,1777036232999,-84597.18059219,8.6e-05,2]
[421096679,1777036233011,-20950.32642993,8.6e-05,2]
[421096680,1777036233020,-150.0,8.604e-05,2]
[421096681,1777036233030,-243.84398242,8.66e-05,2]
[421096682,1777036233039,-1000.0,8.699e-05,2]
[421096683,1777036233048,-1000.0,8.699e-05,2]
[421096684,1777036233059,-70806.52410156,8.7e-05,2]
[421096685,1777036233068,-150.0,8.719e-05,2]
[421096686,1777036233077,-150.0,8.834e-05,2]
[421096687,1777036233087,-600.0,8.9e-05,3]
[421096688,1777036233097,-150.0,8.949e-05,2]
[421096689,1777036233107,-500.0,8.973e-05,2]
[421096690,1777036233118,-500.0,8.973e-05,2]
[421096691,1777036233127,-500.0,8.973e-05,2]
[421096692,1777036233137,-500.0,8.973e-05,2]
[421096693,1777036233146,-500.0,8.973e-05,2]
[421096694,1777036233155,-302.79031833,8.973e-05,2]
[421096695,1777036233164,-500.0,8.973e-05,2]
[421096696,1777036233173,-411.11854101,8.973e-05,2]
[421096697,1777036233182,-500.0,8.973e-05,2]
[421096698,1777036233192,-500.0,8.973e-05,2]
[421096699,1777036233201,-250.0,8.999e-05,2]
[421096700,1777036233211,-500.0,8.999e-05,2]
[421096701,1777036233220,-382.94916749,8.999e-05,2]
[421096702,1777036233230,-191.58906154,8.999e-05,2]
[421096703,1777036233240,-500.0,8.999e-05,2]
[421096704,1777036233250,-500.0,8.999e-05,2]
[421096705,1777036233259,-270.69718578,8.999e-05,2]
[421096706,1777036233270,-300.0,9e-05,2]
[421096707,1777036233279,-15411.71324539,9e-05,2]
[421096708,1777036233293,-1254.41808677,9e-05,2]
[421096709,1777036233305,-38143.03581834,9e-05,2]
[421096710,1777036233330,-7604.2,9e-05,2]
[421096711,1777036233341,-18158.61043862,9e-05,2]
[421096730,1777036240653,-171.09,8.955e-05,2]
[421096731,1777036240663,-228.91,9e-05,2]
[421096753,1777036243480,-500.0,8.699e-05,2]
[421096754,1777036243490,-500.0,8.699e-05,2]
[421096755,1777036243499,-500.0,8.699e-05,2]
[421096756,1777036243508,-500.0,8.699e-05,2]
[421096757,1777036243517,-500.0,8.699e-05,2]
[421096758,1777036243527,-500.0,8.699e-05,2]
[421096759,1777036243536,-500.0,8.699e-05,2]
[421096760,1777036243545,-332.53349475,8.699e-05,2]
[421096761,1777036243554,-500.0,8.699e-05,2]
[421096762,1777036243563,-500.0,8.699e-05,2]
[421096763,1777036243572,-500.0,8.699e-05,2]
[421096764,1777036243581,-500.0,8.699e-05,2]
[421096765,1777036243590,-500.0,8.699e-05,2]
[421096766,1777036243599,-500.0,8.699e-05,2]
[421096767,1777036243608,-500.0,8.699e-05,2]
[421096768,1777036243618,-500.0,8.699e-05,2]
[421096769,1777036243627,-500.0,8.699e-05,2]
[421096770,1777036243635,-500.0,8.699e-05,2]
[421096771,1777036243644,-500.0,8.699e-05,2]
[421096772,1777036243654,-500.0,8.699e-05,2]
[421096773,1777036243663,-500.0,8.699e-05,2]
[421096774,1777036243672,-500.0,8.699e-05,2]
[421096775,1777036243682,-500.0,8.699e-05,2]
[421096776,1777036243691,-500.0,8.699e-05,2]
[421096777,1777036243700,-500.0,8.699e-05,2]
[421096778,1777036243709,-215.46650525,9e-05,2]
[421096779,1777036243880,-41680.73961103,9e-05,2]
[421096780,1777036243911,-14983.50874102,9e-05,2]
[421096789,1777036246827,-592.88021792,9e-05,2]
[421096845,1777036725660,-150.0,7.733e-05,2]
[421096846,1777036725686,-150.0,7.973e-05,2]
[421096847,1777036725713,-252.68510622,8.096e-05,2]
[421096848,1777036725739,-352.0,8.219e-05,2]
[421096849,1777036725768,-1200.0,8.219e-05,2]
[421096850,1777036725795,-300.0,8.219e-05,2]
[421096851,1777036725822,-280.0,8.219e-05,2]
[421096852,1777036725848,-2500.0,8.22e-05,2]
[421096853,1777036725874,-1200.0,8.22e-05,2]
[421096854,1777036725899,-1400.0,8.22e-05,2]
[421096855,1777036725925,-500.0,8.22e-05,2]
[421096856,1777036725951,-151.13,8.58e-05,2]
[421096857,1777036725982,-8023.014,8.6e-05,2]
[421096858,1777036726008,-150.0,8.61e-05,2]
[421096859,1777036726035,-335.21,8.699e-05,2]
[421096860,1777036726061,-500.0,8.712e-05,2]
[421096861,1777036726089,-150.0,8.769e-05,2]
[421096862,1777036726115,-2500.0,8.77e-05,2]
[421096863,1777036726141,-2500.0,8.77e-05,2]
[421096864,1777036726167,-2500.0,8.77e-05,2]
[421096865,1777036726194,-250.0,8.77e-05,2]
[421096866,1777036726219,-300.0,8.77e-05,2]
[421096867,1777036726244,-300.0,8.77e-05,2]
[421096868,1777036726269,-300.0,8.77e-05,2]
[421096869,1777036726296,-300.0,8.77e-05,2]
[421096870,1777036726322,-300.0,8.77e-05,2]
[421096871,1777036726348,-5000.0,8.77e-05,2]
[421096872,1777036726376,-5000.0,8.77e-05,2]
[421096873,1777036726402,-250.0,8.77e-05,2]
[421096874,1777036726428,-234.0,8.788e-05,2]
[421096875,1777036726454,-808.0,8.855e-05,2]
[421096876,1777036726481,-1006.04721534,8.898e-05,2]
[421096877,1777036726507,-4221.1577,8.899e-05,2]
[421096878,1777036726534,-4502.87,8.899e-05,2]
[421096879,1777036726560,-150.99,8.899e-05,2]
[421096880,1777036726586,-14387.99,8.899e-05,2]
[421096881,1777036726612,-286.0,8.899e-05,2]
[421096882,1777036726637,-2124.7391,8.9e-05,2]
[421096883,1777036726664,-2500.0,8.9e-05,2]
[421096884,1777036726690,-410.0,8.908e-05,2]
[421096885,1777036726716,-151.0,8.932e-05,2]
[421096886,1777036726743,-9999.99,8.935e-05,2]
[421096887,1777036726770,-299.99,8.935e-05,2]
[421096888,1777036726797,-3199.98,8.935e-05,2]
[421096889,1777036726824,-9999.99,8.935e-05,2]
[421096890,1777036726851,-9999.99,8.935e-05,2]
[421096891,1777036726877,-999.99,8.935e-05,2]
[421096892,1777036726905,-210.81,8.936e-05,2]
[421096893,1777036726932,-501.164572,8.973e-05,2]
[421096894,1777036726959,-335.21,8.973e-05,2]
[421096895,1777036726986,-4383.321,8.973e-05,2]
[421096896,1777036727013,-306.762,8.973e-05,2]
[421096897,1777036727043,-22731.0203477,8.976e-05,2]
[421096898,1777036727071,-1040.4231029,8.976e-05,2]
[421096899,1777036727099,-151.0,8.997e-05,2]
[421096900,1777036727127,-1063.25963629,8.999e-05,3]
[421096901,1777036727156,-618.06441724,8.999e-05,2]
[421096902,1777036727192,-500.0,8.999e-05,2]
[421096903,1777036727228,-500.0,8.999e-05,2]
[421096904,1777036727264,-500.0,8.999e-05,2]
[421096905,1777036727299,-500.0,8.999e-05,2]
[421096906,1777036727334,-576.05480225,8.999e-05,2]
[421096907,1777036727369,-500.0,8.999e-05,2]
[421096908,1777036727403,-500.0,8.999e-05,2]
[421096909,1777036727438,-500.0,8.999e-05,2]
[421096910,1777036727473,-500.0,8.999e-05,2]
[421096911,1777036727507,-500.0,8.999e-05,2]
[421096912,1777036727542,-500.0,8.999e-05,2]
[421096913,1777036727577,-500.0,8.999e-05,2]
[421096914,1777036727612,-500.0,8.999e-05,2]
[421096915,1777036727647,-500.0,8.999e-05,2]
[421096916,1777036727682,-500.0,8.999e-05,2]
[421096917,1777036727717,-500.0,8.999e-05,2]
[421096918,1777036727755,-500.0,8.999e-05,2]
[421096919,1777036727789,-500.0,8.999e-05,2]
[421096920,1777036727824,-500.0,8.999e-05,2]
[421096921,1777036728247,-500.0,8.999e-05,2]
[421096922,1777036728283,-500.0,8.999e-05,2]
[421096923,1777036728316,-500.0,8.999e-05,2]
[421096924,1777036728350,-500.0,8.999e-05,2]
[421096925,1777036728384,-500.0,8.999e-05,2]
[421096926,1777036728421,-500.0,8.999e-05,2]
[421096927,1777036728455,-500.0,8.999e-05,2]
[421096928,1777036728488,-500.0,8.999e-05,2]
[421096929,1777036728523,-500.0,8.999e-05,2]
[421096930,1777036728556,-500.0,8.999e-05,2]
[421096931,1777036728583,-500.0,8.999e-05,2]
[421096932,1777036728609,-389.48803005,8.999e-05,2]
[421096933,1777036728640,-588377.18273566,9e-05,2]
[421096934,1777036728667,-1300.0,9e-05,3]
[421096935,1777036728693,-500.0,9e-05,2]
[421096936,1777036728719,-151.0,9e-05,2]
[421096937,1777036728745,-151.0,9e-05,2]
[421096938,1777036728772,-151.0,9e-05,2]
[421096939,1777036728799,-151.0,9e-05,2]
[421096940,1777036728825,-151.0,9e-05,2]
[421096941,1777036728852,-151.0,9e-05,2]
[421096942,1777036728879,-151.0,9e-05,2]
[421096943,1777036728906,-151.0,9e-05,2]
[421096944,1777036728933,-165.0,9e-05,3]
[421096945,1777036728959,-173.0,9e-05,3]
[421096946,1777036728986,-152.0,9e-05,3]
[421096947,1777036729013,-151.0,9.007e-05,2]
[421096948,1777036729039,-151.0,9.008e-05,2]
[421096949,1777036729065,-26122.859,9.01e-05,2]
[421096950,1777036729092,-516.61723435,9.041e-05,2]
[421096969,1777037433444,-1200.0,7.963e-05,2]
[421096970,1777037433455,-300.0,7.963e-05,2]
[421096971,1777037433466,-201.13,7.964e-05,2]
[421096972,1777037433475,-150.0,7.964e-05,2]
[421096973,1777037433484,-150.0,7.964e-05,2]
[421096974,1777037433494,-150.0,7.964e-05,2]
[421096975,1777037433504,-72.60825151,7.964e-05,2]
[421096976,1777037433515,-77.39174849,7.964e-05,2]
[421096977,1777037433525,-150.0,7.964e-05,2]
[421096978,1777037433535,-124.97083371,7.964e-05,2]
[421096979,1777037433547,-25.02916629,7.964e-05,2]
[421096980,1777037433557,-150.0,7.964e-05,2]
[421096981,1777037433567,-150.0,7.964e-05,2]
[421096982,1777037433576,-150.0,7.964e-05,2]
[421096983,1777037433586,-150.0,8.045e-05,2]
[421096984,1777037433595,-150.0,8.125e-05,2]
[421096985,1777037433606,-150.0,8.206e-05,2]
[421096986,1777037433615,-280.0,8.219e-05,2]
[421096987,1777037433624,-899.64186037,8.22e-05,2]
[421096988,1777037433657,-400.35813963,8.22e-05,2]
[421096989,1777037433667,-500.0,8.22e-05,2]
[421096990,1777037433677,-1300.0,8.22e-05,2]
[421096991,1777037433686,-201.13,8.238e-05,2]
[421096992,1777037433695,-150.0,8.259e-05,2]
[421096993,1777037433711,-150.0,8.259e-05,2]
[421096994,1777037433720,-150.0,8.286e-05,2]
[421096995,1777037433729,-150.0,8.367e-05,2]
[421096996,1777037433738,-2500.0,8.405e-05,2]
[421096997,1777037433748,-512.18429466,8.405e-05,2]
[421096998,1777037433757,-150.0,8.407e-05,2]
[421096999,1777037433767,-150.0,8.407e-05,2]
[421097000,1777037433776,-150.0,8.447e-05,2]
[421097001,1777037433785,-201.13,8.512e-05,2]
[421097002,1777037433795,-217.0,8.525e-05,2]
[421097003,1777037433804,-242.0,8.525e-05,2]
[421097004,1777037433814,-150.0,8.528e-05,2]
[421097005,1777037433824,-150.0,8.554e-05,2]
[421097006,1777037433834,-150.0,8.554e-05,2]
[421097007,1777037433843,-150.0,8.608e-05,2]
[421097008,1777037433853,-4299.517,8.683e-05,2]
[421097009,1777037433862,-296.251,8.683e-05,2]
[421097010,1777037433871,-150.0,8.688e-05,2]
[421097011,1777037433881,-150.0,8.759e-05,2]
[421097012,1777037433890,-18484.8245,8.76e-05,2]
[421097013,1777037433900,-1680.0,8.76e-05,2]
[421097014,1777037433910,-2500.0,8.761e-05,2]
[421097015,1777037433920,-2500.0,8.761e-05,2]
[421097016,1777037433929,-250.0,8.761e-05,2]
[421097017,1777037433938,-150.0,8.769e-05,2]
[421097018,1777037433948,-201.13,8.786e-05,2]
[421097019,1777037433959,-150.0,8.849e-05,2]
[421097020,1777037433968,-290.5289782,8.849e-05,2]
[421097021,1777037433978,-150.0,8.849e-05,2]
[421097022,1777037433988,-150.00000001,8.849e-05,2]
[421097023,1777037433997,-229.15582108,8.849e-05,2]
[421097024,1777037434007,-150.0,8.849e-05,2]
[421097025,1777037434016,-271.31136748,8.849e-05,2]
[421097026,1777037434026,-287.25978275,8.849e-05,2]
[421097027,1777037434036,-250.0,8.859e-05,2]
[421097028,1777037434046,-224556.00209014,8.86e-05,2]
[421097031,1777037438969,-204.19,8.536e-05,2]
[421097032,1777037438978,-197.9,8.816e-05,2]
[421097033,1777037438987,-106.67912204,8.86e-05,2]
[421097034,1777037439027,-1335.68020852,8.86e-05,2]
[421097077,1777037440237,-8211.90843057,8.86e-05,2]
[421097078,1777037440285,-2511.34373122,8.86e-05,2]
[421097094,1777037443844,-500.0,8.575e-05,2]
[421097095,1777037443854,-817.35234554,8.86e-05,2]
[421097097,1777037447203,-4670.60698737,8.76e-05,2]
[421097098,1777037447220,-16166.71168422,8.76e-05,2]
[421097099,1777037447269,-6356.90725166,8.76e-05,2]
[421097100,1777037447281,-253.41663215,8.76e-05,2]
[421097128,1777038204569,-300.0,8.218e-05,2]
[421097129,1777038204598,-1200.0,8.218e-05,2]
[421097130,1777038204628,-300.0,8.218e-05,2]
[421097131,1777038204656,-250.0,8.219e-05,2]
[421097132,1777038204683,-1200.0,8.219e-05,2]
[421097133,1777038204711,-300.0,8.219e-05,2]
[421097134,1777038204742,-280.0,8.219e-05,2]
[421097135,1777038204770,-1200.0,8.22e-05,2]
[421097136,1777038204800,-1200.0,8.22e-05,2]
[421097137,1777038204829,-424.23246934,8.22e-05,2]
[421097138,1777038204857,-250.0,8.223e-05,2]
[421097139,1777038204885,-2500.0,8.236e-05,2]
[421097140,1777038204912,-150.0,8.531e-05,2]
[421097141,1777038204939,-3032.76318941,8.532e-05,2]
[421097142,1777038204967,-1976.39652943,8.532e-05,2]
[421097143,1777038204995,-3439.613,8.572e-05,2]
[421097144,1777038205024,-237.0,8.572e-05,2]
[421097145,1777038205052,-478.05,8.572e-05,2]
[421097146,1777038205083,-92271.4382,8.66e-05,2]
[421097147,1777038205118,-302.89,8.757e-05,2]
[421097148,1777038205157,-650283.3195,8.758e-05,2]
[421097149,1777038205185,-166.0,8.76e-05,3]
[421097150,1777038205214,-18150.9973,8.76e-05,2]
[421097151,1777038205245,-2500.0,8.76e-05,2]
[421097152,1777038205275,-153.0,8.76e-05,3]